bitfinex/quotes_ETHUSD_20250323
["timestamp","ask_amount","ask_price","bid_price","bid_amount"]
[1742714874504,0.5,2007.8,2007.6,10.31538]
[1742714874710,0.5,2007.8,2007.7,4.98082]
[1742714874910,0.5,2007.8,2007.7,5.73732]
[1742714890572,0.5,2007.8,2007.7,7.24989864]
[1742714890941,0.5,2007.8,2007.7,10.24989864]
[1742714907619,0.5,2007.8,2007.7,36.57789864]
[1742714915704,0.5,2007.8,2007.7,35.82139864]
[1742714928065,0.5,2007.8,2007.7,35.81622064]
[1742714932363,0.5,2007.8,2007.7,34.303642]
[1742714932563,1.2964,2007.8,2007.7,34.303642]
[1742714932777,1.2964,2007.8,2007.7,38.878642]
[1742714933171,1.2964,2007.8,2007.7,34.303642]
[1742714933462,1.2964,2007.8,2007.7,38.878642]
[1742714934254,1.2964,2007.8,2007.7,34.303642]
[1742714934457,1.2964,2007.8,2007.7,38.878642]
[1742714939353,0.5,2007.8,2007.7,40.39122064]
[1742714959010,0.5,2007.8,2007.7,40.94122064]
[1742714963534,0.8252,2008.2,2007.7,40.94122064]
[1742714963819,0.8252,2008.2,2008.1,6.49240864]
[1742714964124,0.8252,2008.2,2008.1,11.06740864]
[1742714965124,0.8252,2008.2,2008.1,11.43247968]
[1742714965749,0.8252,2008.2,2008.1,37.76047968]
[1742714973731,0.8252,2008.2,2008.1,36.24790104]
[1742714985025,0.8252,2008.2,2008.1,31.67290104]
[1742714985345,0.8252,2008.2,2008.1,36.24790104]
[1742714986718,0.8252,2008.2,2008.1,31.67290104]
[1742714987056,0.8252,2008.2,2008.1,36.24790104]
[1742714990757,0.01,2008.3,2008.2,4.97958]
[1742714995355,0.01,2008.3,2008.2,31.30458]
[1742715009997,0.01,2008.3,2008.2,35.81715864]
[1742715010309,0.01,2008.3,2008.2,36.63985864]
[1742715013700,0.01,2008.3,2008.2,37.10537746]
[1742715015597,0.01,2008.3,2008.2,36.28267746]
[1742715020683,0.01,2008.3,2008.2,34.77009882]
[1742715022593,0.01,2008.3,2008.2,31.77009882]
[1742715022774,0.01,2008.3,2008.2,33.28267746]
[1742715023302,0.01,2008.3,2008.2,31.77009882]
[1742715028515,0.01,2008.3,2008.2,36.34409882]
[1742715031783,0.8057,2008.3,2008.2,36.34409882]
[1742715039330,0.8057,2008.3,2008.2,31.77009882]
[1742715039537,0.8057,2008.3,2008.2,36.34409882]
[1742715040340,0.8057,2008.3,2008.2,31.36451882]
[1742715042042,0.8057,2008.3,2008.2,36.34409882]
[1742715043299,0.8057,2008.3,2008.2,10.01909882]
[1742715060536,0.8057,2008.3,2008.2,5.03951882]
[1742715069448,0.8057,2008.3,2008.2,10.01909882]
[1742715069649,0.8057,2008.3,2008.2,5.03951882]
[1742715098074,8.37447264,2008.3,2008.2,0.46551882]
[1742715099477,8.37447264,2008.3,2008.1,4.574]
[1742715099707,1.51257864,2008.2,2008.1,4.574]
[1742715099909,6.49215864,2008.2,2008.1,4.574]
[1742715100917,1.882564,2008.3,2008.1,4.574]
[1742715101121,0.01,2008.3,2008.1,9.55369]
[1742715104700,0.01,2008.3,2008.1,4.574]
[1742715104897,1.52257864,2008.3,2008.1,4.574]
[1742715105201,7.32942864,2008.3,2008.1,4.574]
[1742715105700,8.56655139,2008.3,2008.1,4.574]
[1742715107296,8.62426023,2008.3,2008.1,4.574]
[1742715107614,5.76287,2008.0,2007.9,26.327]
[1742715107819,7.27544864,2008.0,2007.9,26.327]
[1742715120814,4.98057,2007.8,2007.7,4.575]
[1742715122942,4.98034,2007.9,2007.7,4.575]
[1742715129731,7.6402185,2007.9,2007.7,4.575]
[1742715130256,6.49291864,2007.9,2007.7,4.575]
[1742715130858,4.98034,2007.9,2007.7,4.575]
[1742715131029,9.96086,2007.9,2007.7,4.575]
[1742715131229,4.98034,2007.9,2007.7,4.575]
[1742715132552,6.49265864,2008.0,2007.7,4.575]
[1742715132945,11.47293864,2008.0,2007.7,4.575]
[1742715133556,6.49265864,2008.0,2007.7,4.575]
[1742715134947,6.49241864,2008.1,2007.7,9.55579]
[1742715135565,4.97986,2008.1,2007.8,0.758]
[1742715135872,1.24712275,2008.3,2007.8,0.758]
[1742715135873,0.01,2008.3,2008.0,4.97989]
[1742715136047,0.01,2008.3,2008.1,4.575]
[1742715136245,4.98935,2008.3,2008.1,4.575]
[1742715136559,4.98935,2008.3,2008.2,0.758]
[1742715137588,0.01,2008.3,2008.2,0.758]
[1742715138672,4.98933,2008.3,2008.1,4.575]
[1742715139065,0.01,2008.3,2008.1,4.575]
[1742715140867,0.01,2008.3,2008.1,9.55482]
[1742715141067,0.01,2008.3,2008.1,4.575]
[1742715144267,4.98937,2008.3,2008.1,4.575]
[1742715146767,0.01,2008.3,2008.1,4.575]
[1742715147383,4.9895,2008.3,2008.1,4.575]
[1742715147583,6.50207864,2008.3,2008.1,4.575]
[1742715148087,11.48160864,2008.3,2008.1,4.575]
[1742715148258,1.51257864,2008.2,2008.1,4.575]
[1742715148796,6.49224864,2008.2,2008.1,4.574]
[1742715149023,4.97967,2008.2,2008.1,4.574]
[1742715150018,4.97967,2008.2,2007.9,26.332]
[1742715150317,4.97967,2008.2,2008.1,4.574]
[1742715153502,1.52257864,2008.3,2008.1,4.574]
[1742715153809,0.01,2008.3,2008.1,9.55364]
[1742715154594,0.01,2008.3,2008.1,4.574]
[1742715162113,1.52257864,2008.3,2008.1,4.574]
[1742715162796,0.01,2008.3,2008.1,4.574]
[1742715165140,4.98935,2008.3,2008.1,4.574]
[1742715165420,0.01,2008.3,2008.1,4.574]
[1742715166309,4.98933,2008.3,2008.1,4.574]
[1742715167226,0.01,2008.3,2008.1,4.574]
[1742715184942,0.01,2008.3,2008.1,9.55372]
[1742715186339,0.01,2008.3,2008.1,9.55381]
[1742715186719,0.01,2008.3,2008.2,4.97958]
[1742715186923,0.01,2008.3,2008.1,14.53334]
[1742715187424,0.01,2008.3,2008.1,9.55366]
[1742715187921,0.01,2008.3,2008.1,14.53336]
[1742715188122,0.01,2008.3,2008.1,14.53338]
[1742715188319,0.01,2008.3,2008.1,9.55366]
[1742715188659,0.01,2008.3,2008.1,35.88166]
[1742715189263,0.01,2008.3,2008.1,40.86129]
[1742715189426,0.01,2008.3,2008.1,35.88163]
[1742715189863,0.01,2008.3,2008.1,40.86127]
[1742715190189,0.01,2008.3,2008.2,4.97958]
[1742715190460,0.01,2008.3,2008.1,35.8818]
[1742715191738,0.01,2008.3,2008.1,40.86143]
[1742715192856,0.01,2008.3,2008.1,35.88163]
[1742715193040,0.01,2008.3,2008.1,40.86133]
[1742715194576,0.01,2008.3,2008.1,35.88163]
[1742715195385,0.01,2008.3,2008.1,40.86128]
[1742715196086,0.01,2008.3,2008.1,35.88163]
[1742715201073,0.01,2008.3,2008.1,40.86126]
[1742715202478,0.01,2008.3,2008.1,40.86135]
[1742715205284,0.01,2008.3,2008.1,35.88163]
[1742715205459,0.01,2008.3,2008.1,40.86134]
[1742715207183,0.01,2008.3,2008.1,35.88163]
[1742715207348,0.01,2008.3,2008.2,4.97958]
[1742715209288,0.01,2008.3,2008.1,35.88163]
[1742715209654,0.01,2008.3,2008.1,40.86129]
[1742715212565,0.01,2008.3,2008.2,4.97958]
[1742715220399,0.773,2008.2,2007.5,0.52054929]
[1742715220562,0.773,2008.2,2007.5,4.9812]
[1742715220563,0.773,2007.8,2007.5,4.9812]
[1742715220765,0.773,2008.0,2007.6,4.98103]
[1742715220998,0.773,2008.0,2007.7,4.601]
[1742715220999,2.28557864,2008.0,2007.7,4.601]
[1742715222092,7.26580864,2008.0,2007.7,4.601]
[1742715222393,7.26580864,2008.0,2007.8,4.6]
[1742715222584,8.54332829,2008.0,2007.8,4.6]
[1742715224178,0.773,2008.0,2007.8,4.6]
[1742715225815,5.75308,2008.0,2007.8,4.6]
[1742715226518,0.773,2008.0,2007.8,4.6]
[1742715227727,7.0219665,2008.1,2007.8,4.6]
[1742715227917,5.50938786,2008.1,2007.8,4.6]
[1742715228216,7.0219665,2008.1,2007.8,4.6]
[1742715230121,1.27984465,2008.0,2007.8,4.6]
[1742715230499,6.25992465,2008.0,2007.8,4.6]
[1742715230700,4.98008,2008.0,2007.8,4.6]
[1742715231218,7.0219665,2008.1,2007.8,4.6]
[1742715232525,1.51257864,2008.0,2007.8,4.6]
[1742715236420,6.49265864,2008.0,2007.8,4.6]
[1742715239624,4.98008,2008.0,2007.8,4.6]
[1742715240320,6.49265864,2008.0,2007.8,4.6]
[1742715242223,1.51257864,2008.0,2007.8,4.6]
[1742715242526,6.49267864,2008.0,2007.8,4.6]
[1742715246129,4.9801,2008.0,2007.8,4.6]
[1742715246329,1.51257864,2008.0,2007.8,4.6]
[1742715246710,6.49265864,2008.0,2007.8,4.6]
[1742715247032,8.5146015,2008.0,2007.8,4.6]
[1742715251324,7.28765864,2008.0,2007.8,4.6]
[1742715254340,12.26795864,2008.0,2007.8,4.6]
[1742715254641,7.28765864,2008.0,2007.8,4.6]
[1742715254830,1.51257864,2007.9,2007.8,4.6]
[1742715255229,6.49289864,2007.9,2007.8,4.6]
[1742715255445,6.49289864,2007.9,2007.6,26.331]
[1742715255446,0.7666,2007.7,2007.6,26.331]
[1742715255629,7.25999864,2007.7,2007.6,30.923]
[1742715256255,7.25999864,2007.7,2007.6,26.331]
[1742715262557,7.25999864,2007.7,2007.4,4.592]
[1742715262769,6.49364864,2007.6,2007.4,4.592]
[1742715269464,6.49389864,2007.5,2007.4,4.592]
[1742715269665,6.49389864,2007.5,2007.4,4.588]
[1742715270596,1.51257864,2007.5,2007.4,4.588]
[1742715273004,1.51257864,2007.5,2007.2,4.98193]
[1742715273206,1.51257864,2007.5,2007.1,32.47390402]
[1742715273207,1.51257864,2007.3,2007.1,31.31629]
[1742715273500,1.51257864,2007.2,2007.1,26.334]
[1742715273688,6.49440864,2007.3,2007.1,30.922]
[1742715282313,4.98183,2007.3,2007.1,30.922]
[1742715284510,6.49440864,2007.3,2007.1,30.922]
[1742715286123,6.49440864,2007.3,2007.1,26.334]
[1742715286414,6.49440864,2007.3,2007.1,30.919]
[1742715286627,6.49440864,2007.3,2007.1,4.585]
[1742715291342,6.49463864,2007.2,2007.1,4.585]
[1742715291501,4.98256,2007.0,2006.9,30.925]
[1742715291699,6.49513864,2007.0,2006.9,30.925]
[1742715293752,7.29350864,2007.1,2006.9,30.925]
[1742715293953,6.49490864,2007.1,2006.9,30.925]
[1742715294134,7.29753259,2007.1,2006.9,30.925]
[1742715294625,4.98256,2007.0,2006.9,30.925]
[1742715297063,6.49513864,2007.0,2006.9,30.925]
[1742715297358,7.29373864,2007.0,2006.9,30.925]
[1742715297969,7.29373864,2007.0,2006.9,26.339]
[1742715298152,9.0998149,2007.0,2006.9,26.339]
[1742715300983,14.0825949,2007.0,2006.8,14.586]
[1742715301185,9.0998149,2007.0,2006.8,14.586]
[1742715301350,4.9828,2006.9,2006.8,14.586]
[1742715308827,2.31520259,2007.1,2006.8,14.586]
[1742715308970,0.778,2007.2,2006.8,15.3721]
[1742715309317,7.9822,2007.2,2006.8,20.35497]
[1742715309809,7.9822,2007.2,2006.8,25.33788]
[1742715310006,7.9822,2007.2,2006.8,20.35497]
[1742715311607,4.9822,2007.2,2006.8,21.86754864]
[1742715311799,4.9822,2007.2,2006.8,20.35497]
[1742715315515,6.14,2007.5,2007.1,0.7913]
[1742715315719,4.98168,2007.4,2007.2,4.585]
[1742715315888,6.49425864,2007.4,2007.2,4.585]
[1742715316290,4.98168,2007.4,2007.2,4.585]
[1742715317283,6.14,2007.5,2007.2,4.585]
[1742715317503,2.29057864,2007.6,2007.2,4.585]
[1742715317707,6.49388864,2007.6,2007.2,9.56686]
[1742715318120,6.49388864,2007.6,2007.2,14.54878]
[1742715318316,4.98131,2007.6,2007.2,9.56686]
[1742715318495,1.51257864,2007.7,2007.3,5.77298]
[1742715318496,6.49345864,2007.7,2007.3,5.77298]
[1742715319425,4.98088,2007.7,2007.3,5.77298]
[1742715319581,7.28377864,2007.8,2007.4,4.98156]
[1742715321179,12.26456864,2007.8,2007.4,4.98156]
[1742715321517,12.26456864,2007.8,2007.3,5.77298]
[1742715321518,4.98082,2007.7,2007.3,5.77298]
[1742715321825,6.49339864,2007.7,2007.3,5.77298]
[1742715326625,6.49339864,2007.7,2007.3,10.75464]
[1742715327425,6.49339864,2007.7,2007.3,4.98166]
[1742715327629,1.51257864,2007.6,2007.3,4.98166]
[1742715328486,6.49339864,2007.7,2007.3,10.7546]
[1742715328690,6.49339864,2007.7,2007.3,5.77294]
[1742715331745,6.49339864,2007.7,2007.4,0.19863506]
[1742715333457,1.51257864,2007.7,2007.4,5.18019506]
[1742715339771,4.98034,2007.9,2007.5,5.76558]
[1742715339950,6.49321864,2007.8,2007.6,4.582]
[1742715340261,6.49321864,2007.8,2007.6,4.78403167]
[1742715348873,1.51257864,2007.7,2007.6,4.78403167]
[1742715349774,7.24851864,2007.8,2007.6,4.78403167]
[1742715349983,1.51257864,2007.8,2007.6,4.78403167]
[1742715360190,1.51257864,2007.7,2007.6,4.78403167]
[1742715362415,2.30157864,2007.8,2007.6,4.78403167]
[1742715363409,1.51257864,2007.7,2007.6,4.78403167]
[1742715365224,1.51257864,2007.7,2007.6,0.15203167]
[1742715365519,1.51257864,2007.7,2007.6,0.2024145]
[1742715366424,1.51257864,2007.7,2007.6,4.7784145]
[1742715368738,1.51257864,2007.7,2007.6,4.77008116]
[1742715369936,2.7388285,2007.7,2007.6,4.77008116]
[1742715372230,2.7388285,2007.7,2007.6,4.76620165]
[1742715373941,2.7388285,2007.7,2007.6,4.71620165]
[1742715374241,2.7388285,2007.7,2007.6,4.76203498]
[1742715375756,2.7388285,2007.7,2007.6,4.71203498]
[1742715376052,2.7388285,2007.7,2007.6,4.75786832]
[1742715377658,2.79653734,2007.7,2007.6,4.75786832]
[1742715377826,8.54085734,2007.7,2007.6,4.75786832]
[1742715378155,8.4831485,2007.7,2007.6,4.75786832]
[1742715400271,8.54085734,2007.7,2007.6,4.75786832]
[1742715400476,11.54085734,2007.7,2007.6,0.18186832]
[1742715400652,12.99572714,2007.7,2007.6,0.18186832]
[1742715400854,4.98181,2007.3,2007.2,4.576]
[1742715401051,6.49438864,2007.3,2007.2,4.576]
[1742715403178,6.49438864,2007.3,2007.2,4.75901702]
[1742715403876,6.49438864,2007.3,2007.2,0.13301702]
[1742715404055,6.49438864,2007.3,2007.2,0.17885035]
[1742715404777,11.47643864,2007.3,2006.9,0.807]
[1742715404976,1.51257864,2007.2,2006.9,0.807]
[1742715405142,1.51257864,2007.2,2007.0,4.576]
[1742715405342,6.49467864,2007.2,2007.0,4.576]
[1742715407474,4.98232,2007.1,2006.9,0.807]
[1742715407782,4.98232,2007.1,2007.0,4.577]
[1742715408460,6.49489864,2007.1,2006.9,0.807]
[1742715408779,6.49489864,2007.1,2006.9,5.384]
[1742715409277,6.49489864,2007.1,2006.9,5.334]
[1742715410599,6.49501864,2007.1,2006.9,5.334]
[1742715411551,6.49501864,2007.1,2007.0,0.17885035]
[1742715413893,6.49501864,2007.1,2007.0,0.12885035]
[1742715414078,6.49501864,2007.1,2007.0,0.17885035]
[1742715417321,6.49501864,2007.1,2007.0,0.17386805]
[1742715419219,6.49501864,2007.1,2007.0,0.1696535]
[1742715419506,4.98244,2007.1,2007.0,0.1696535]
[1742715426025,6.49464864,2007.2,2007.0,0.1696535]
[1742715426215,11.47685864,2007.2,2007.0,0.1696535]
[1742715426416,6.49464864,2007.2,2007.0,0.1696535]
[1742715426713,11.47691864,2007.2,2007.0,0.1696535]
[1742715427789,4.98231,2007.1,2007.0,0.1696535]
[1742715430027,7.7255205,2007.2,2007.0,0.1696535]
[1742715430822,4.98231,2007.1,2007.0,0.1696535]
[1742715433203,6.49488864,2007.1,2007.0,0.1696535]
[1742715434217,4.98231,2007.1,2007.0,0.1696535]
[1742715434416,5.50206244,2007.1,2007.0,0.1696535]
[1742715434940,7.01464108,2007.1,2007.0,0.1696535]
[1742715436206,6.49488864,2007.1,2007.0,0.1696535]
[1742715436905,7.32408864,2007.1,2007.0,0.1696535]
[1742715437100,4.9828,2006.9,2006.8,10.0]
[1742715437306,6.49537864,2006.9,2006.8,10.0]
[1742715437509,4.9828,2006.9,2006.8,10.0]
[1742715437756,7.7260935,2006.9,2006.8,10.0]
[1742715439437,6.21351486,2006.9,2006.8,10.0]
[1742715439641,4.9828,2006.9,2006.8,10.0]
[1742715440914,0.8292,2007.1,2006.8,10.0]
[1742715440915,4.51257864,2007.1,2006.8,10.0]
[1742715441220,4.98269,2007.0,2006.8,10.0]
[1742715444945,6.49491864,2007.1,2006.8,10.0]
[1742715445158,11.12216,2007.2,2006.9,0.7797]
[1742715445717,4.98234,2007.1,2006.9,0.7797]
[1742715447041,17.61702864,2007.2,2006.9,0.7797]
[1742715447206,12.63473864,2007.2,2006.9,0.7797]
[1742715447548,11.12216,2007.2,2006.9,0.7797]
[1742715448526,11.12206,2007.2,2006.9,0.7797]
[1742715448927,11.12206,2007.2,2007.0,0.1544349]
[1742715449457,6.14,2007.2,2007.0,0.1544349]
[1742715449662,6.14,2007.2,2007.1,4.578]
[1742715450224,11.47653864,2007.3,2007.1,4.7324349]
[1742715450463,4.98206,2007.2,2007.1,4.7324349]
[1742715454867,6.49443864,2007.3,2007.1,4.7324349]
[1742715455062,4.98186,2007.3,2007.1,5.5427349]
[1742715455360,6.49400864,2007.5,2007.1,5.5427349]
[1742715455933,4.98159,2007.4,2007.1,5.5427349]
[1742715457164,6.49416864,2007.4,2007.1,5.5427349]
[1742715457667,4.98187,2007.3,2007.1,5.5427349]
[1742715457969,4.98187,2007.3,2007.1,4.7324349]
[1742715458862,6.49444864,2007.3,2007.1,4.7324349]
[1742715459433,4.98183,2007.3,2007.1,4.7324349]
[1742715460863,6.20710986,2007.7,2007.3,4.98178]
[1742715461070,7.19633963,2007.6,2007.2,5.79663]
[1742715461265,7.19633963,2007.6,2007.4,0.15400465]
[1742715461454,1.51257864,2007.5,2007.2,5.79663]
[1742715461861,11.47496864,2007.6,2007.2,5.79663]
[1742715462171,1.51257864,2007.5,2007.2,5.79663]
[1742715463063,6.49390864,2007.5,2007.2,0.8148]
[1742715463269,11.47545864,2007.5,2007.3,0.1529052]
[1742715463659,1.51257864,2007.4,2007.3,0.1529052]
[1742715468378,6.49368864,2007.6,2007.3,5.1345852]
[1742715468573,6.49368864,2007.6,2007.3,0.1529052]
[1742715470256,6.49368864,2007.6,2007.3,5.1347152]
[1742715471075,1.51257864,2007.6,2007.3,5.1346152]
[1742715471995,1.51257864,2007.6,2007.3,5.1345552]
[1742715472285,1.51257864,2007.7,2007.4,5.77716]
[1742715472463,1.51257864,2007.7,2007.5,4.578]
[1742715472670,1.51257864,2007.7,2007.5,4.730714]
[1742715473274,6.49340864,2007.7,2007.5,4.730714]
[1742715475381,1.51257864,2007.7,2007.5,4.730714]
[1742715483207,6.49341864,2007.7,2007.5,4.730714]
[1742715483566,1.51257864,2007.6,2007.5,4.730714]
[1742715487098,1.51257864,2007.6,2007.5,4.728714]
[1742715489120,6.49364864,2007.6,2007.5,4.728714]
[1742715489621,1.51257864,2007.6,2007.5,4.728714]
[1742715489918,2.30817864,2007.6,2007.5,4.728714]
[1742715490622,10.02878814,2007.6,2007.5,0.152714]
[1742715490793,10.02878814,2007.6,2007.4,4.576]
[1742715491001,4.98158,2007.4,2007.1,26.34]
[1742715491198,1.51257864,2007.3,2007.1,26.34]
[1742715491683,1.51257864,2007.3,2007.1,31.32226]
[1742715492128,1.51257864,2007.3,2007.2,4.576]
[1742715492426,1.51257864,2007.3,2007.1,26.34]
[1742715492624,1.51257864,2007.2,2007.1,26.34]
[1742715493223,1.51257864,2007.2,2007.1,26.49180584]
[1742715493820,1.51257864,2007.2,2007.1,31.06780584]
[1742715495626,6.49463864,2007.2,2007.1,31.06780584]
[1742715495789,6.49463864,2007.2,2007.1,31.06880584]
[1742715495995,7.29133864,2007.2,2007.1,26.49180584]
[1742715496295,8.5186655,2007.2,2007.1,26.49180584]
[1742715497801,7.29133864,2007.2,2007.1,26.49180584]
[1742715501597,6.55234748,2007.2,2007.1,26.49180584]
[1742715501834,10.29133864,2007.2,2007.1,0.15180584]
[1742715502038,4.9828,2006.9,2006.8,14.578]
[1742715502237,7.29207864,2006.9,2006.8,10.15343102]
[1742715508617,9.28480237,2006.9,2006.8,10.15343102]
[1742715514624,7.29207864,2006.9,2006.8,10.15343102]
[1742715525360,10.29207864,2006.9,2006.8,10.15343102]
[1742715529484,16.43207864,2006.9,2006.8,10.15343102]
[1742715531592,16.43207864,2006.9,2006.8,10.0]
[1742715531777,16.43207864,2006.9,2006.8,10.1469445]
[1742715532358,19.68093337,2006.9,2006.8,10.1469445]
[1742715532554,0.8213,2006.3,2005.7,1.31183685]
[1742715532755,0.8213,2006.3,2005.7,5.89183685]
[1742715532756,4.98508,2006.0,2005.7,5.89183685]
[1742715533156,4.98508,2006.0,2005.7,5.371]
[1742715535785,4.98479,2006.1,2005.7,5.371]
[1742715536291,4.98505,2006.0,2005.7,5.371]
[1742715540162,4.98505,2006.0,2005.8,0.13469913]
[1742715540563,4.98529,2005.9,2005.8,0.13469913]
[1742715540819,4.98505,2006.0,2005.8,0.13469913]
[1742715541491,9.9703,2006.0,2005.8,0.13469913]
[1742715542203,4.98505,2006.0,2005.8,0.13469913]
[1742715542777,4.98529,2005.9,2005.8,0.13469913]
[1742715542983,4.98509,2006.0,2005.8,0.13469913]
[1742715543910,5.7564,2006.1,2005.8,0.13469913]
[1742715545413,4.98504,2006.0,2005.8,0.13469913]
[1742715550311,4.98504,2006.0,2005.8,0.13369913]
[1742715552015,4.98529,2005.9,2005.8,0.13369913]
[1742715552323,6.53949912,2006.0,2005.8,0.13369913]
[1742715552618,11.52474912,2006.0,2005.8,0.13369913]
[1742715554520,5.75666,2006.0,2005.8,0.13369913]
[1742715556328,4.98529,2005.9,2005.8,0.13369913]
[1742715556823,5.75666,2006.0,2005.8,0.13369913]
[1742715557330,4.98506,2006.0,2005.8,0.13369913]
[1742715559092,4.98529,2005.9,2005.8,0.13369913]
[1742715559496,4.98505,2006.0,2005.8,0.13369913]
[1742715564322,4.98529,2005.9,2005.8,0.13369913]
[1742715565028,4.98511,2006.0,2005.8,0.13369913]
[1742715565793,4.98529,2005.9,2005.8,0.13369913]
[1742715568708,9.9703,2006.0,2005.8,0.13369913]
[1742715569331,9.97029,2006.0,2005.8,0.13369913]
[1742715569534,11.48286864,2006.0,2005.8,0.13369913]
[1742715570236,6.49768864,2006.0,2005.8,0.13369913]
[1742715570858,4.98529,2005.9,2005.8,0.13369913]
[1742715578835,7.6461665,2005.9,2005.8,0.13369913]
[1742715579250,8.4530665,2005.9,2005.8,0.13369913]
[1742715579443,4.98571,2005.8,2005.4,34.81766896]
[1742715579745,6.49836864,2005.7,2005.5,4.588]
[1742715580244,4.98579,2005.7,2005.5,4.588]
[1742715580609,4.98579,2005.7,2005.4,34.81767896]
[1742715580907,4.98579,2005.7,2005.5,4.587]
[1742715581548,6.49815864,2005.8,2005.5,4.587]
[1742715583112,6.49815864,2005.8,2005.6,0.14054113]
[1742715583752,4.98558,2005.8,2005.6,0.14054113]
[1742715584354,6.49815864,2005.8,2005.6,0.14054113]
[1742715585441,13.4385065,2005.9,2005.6,0.14054113]
[1742715585645,12.6316065,2005.9,2005.6,0.14054113]
[1742715586028,4.98561,2005.8,2005.6,0.14054113]
[1742715592448,7.31136864,2005.7,2005.6,0.14054113]
[1742715592855,4.98628,2005.5,2005.4,2.70856896]
[1742715595347,11.48494864,2005.6,2005.4,2.70856896]
[1742715595915,8.45668229,2005.8,2005.4,7.69499896]
[1742715596122,13.44243229,2005.8,2005.4,7.69499896]
[1742715596450,8.45668229,2005.8,2005.4,7.69499896]
[1742715596656,13.44242229,2005.8,2005.4,7.69499896]
[1742715597043,4.98595,2005.7,2005.4,2.70856896]
[1742715597225,13.08399365,2005.8,2005.4,7.69498896]
[1742715597943,14.59657229,2005.8,2005.4,7.69498896]
[1742715598145,14.59657229,2005.8,2005.5,0.12908076]
[1742715598346,2.03949123,2005.7,2005.5,0.12908076]
[1742715598959,2.03949123,2005.7,2005.5,4.72808076]
[1742715599258,7.02530123,2005.7,2005.5,4.72808076]
[1742715600666,4.98603,2005.6,2005.5,4.72808076]
[1742715601178,4.98603,2005.6,2005.5,0.12908076]
[1742715601377,7.03359099,2005.6,2005.5,0.12908076]
[1742715602149,4.98603,2005.6,2005.5,0.12908076]
[1742715602473,4.98584,2005.7,2005.5,0.12908076]
[1742715603078,9.97186,2005.7,2005.5,0.12908076]
[1742715603278,11.48443864,2005.7,2005.5,0.12908076]
[1742715605481,6.49841864,2005.7,2005.5,0.12908076]
[1742715605781,13.3279745,2005.7,2005.5,0.12908076]
[1742715606684,8.3419845,2005.7,2005.5,0.12908076]
[1742715606852,13.3279945,2005.7,2005.5,0.12908076]
[1742715607261,6.82940586,2005.7,2005.5,0.12908076]
[1742715609592,11.81539586,2005.7,2005.5,0.12908076]
[1742715611485,4.98603,2005.6,2005.5,0.12908076]
[1742715614194,6.93283145,2005.6,2005.5,0.12908076]
[1742715615053,1.94680145,2005.6,2005.5,0.12908076]
[1742715615259,6.93283145,2005.6,2005.5,0.12908076]
[1742715617659,4.98603,2005.6,2005.5,0.12908076]
[1742715624105,4.98581,2005.7,2005.5,0.12908076]
[1742715624406,17.62385864,2005.8,2005.5,0.12908076]
[1742715624601,4.98579,2005.7,2005.5,0.12908076]
[1742715625706,4.98579,2005.7,2005.5,0.94578076]
[1742715629012,4.98494,2006.1,2005.7,0.8167]
[1742715629157,4.98515,2006.0,2005.7,0.8167]
[1742715629363,4.98515,2006.0,2005.8,4.598]
[1742715629776,4.98515,2006.0,2005.9,0.13060876]
[1742715629989,4.98515,2006.0,2005.8,4.598]
[1742715630214,4.98515,2006.0,2005.9,0.13060876]
[1742715630421,6.596159,2006.0,2005.8,4.598]
[1742715630627,6.596159,2006.0,2005.9,0.13060876]
[1742715630982,6.596159,2006.0,2005.8,4.598]
[1742715631120,4.98515,2006.0,2005.9,0.13060876]
[1742715631434,4.98515,2006.0,2005.8,4.598]
[1742715631606,4.98515,2006.0,2005.9,0.31901637]
[1742715631797,4.98515,2006.0,2005.8,4.598]
[1742715631999,4.98515,2006.0,2005.9,0.31958931]
[1742715632197,4.98515,2006.0,2005.8,4.598]
[1742715632439,4.98515,2006.0,2005.9,0.31958931]
[1742715632606,4.98515,2006.0,2005.8,4.598]
[1742715632803,4.98515,2006.0,2005.9,0.31958931]
[1742715633008,4.98515,2006.0,2005.8,4.598]
[1742715633306,4.98515,2006.0,2005.9,0.31958931]
[1742715633513,4.98515,2006.0,2005.8,4.598]
[1742715633728,4.98515,2006.0,2005.9,0.31958931]
[1742715634236,4.98515,2006.0,2005.9,0.31877748]
[1742715634436,4.98515,2006.0,2005.8,4.598]
[1742715634621,4.98515,2006.0,2005.9,0.31877748]
[1742715635133,4.98515,2006.0,2005.8,4.598]
[1742715635298,4.98515,2006.0,2005.9,0.31877748]
[1742715635836,4.98515,2006.0,2005.8,4.598]
[1742715636028,4.98515,2006.0,2005.9,0.31877748]
[1742715636202,4.98515,2006.0,2005.8,4.598]
[1742715636396,4.98515,2006.0,2005.9,0.31877748]
[1742715636717,4.98515,2006.0,2005.8,4.598]
[1742715636918,4.51257864,2006.1,2005.9,0.31877748]
[1742715637094,9.49756864,2006.1,2005.9,0.31877748]
[1742715637301,12.97,2006.1,2005.8,4.598]
[1742715637634,4.98507,2006.0,2005.8,4.598]
[1742715643256,4.98507,2006.0,2005.9,0.31853874]
[1742715643411,4.98507,2006.0,2005.8,4.598]
[1742715643613,4.98507,2006.0,2005.9,0.31853874]
[1742715643813,7.04733386,2006.0,2005.8,4.598]
[1742715644110,4.98507,2006.0,2005.8,4.598]
[1742715644313,4.98507,2006.0,2005.9,0.31853874]
[1742715644757,4.98507,2006.0,2005.8,4.598]
[1742715644951,4.98507,2006.0,2005.9,0.31853874]
[1742715645260,4.98507,2006.0,2005.8,4.598]
[1742715645751,4.98507,2006.0,2005.9,0.31853874]
[1742715646053,4.98507,2006.0,2005.8,4.598]
[1742715646263,4.98507,2006.0,2005.9,0.31825224]
[1742715646561,4.98507,2006.0,2005.8,4.598]